bitfinex/quotes_BTCUSD_20250620
["timestamp","ask_amount","ask_price","bid_price","bid_amount"]
[1750386216256,5.39144888,104870.0,104860.0,0.27182128]
[1750386217491,5.39144888,104870.0,104860.0,0.2622854]
[1750386217686,5.4009844,104870.0,104860.0,0.27182137]
[1750386217864,5.4009844,104870.0,104860.0,0.2622854]
[1750386218231,5.4009844,104870.0,104860.0,0.25274933]
[1750386218415,5.41052001,104870.0,104860.0,0.25274933]
[1750386218871,5.41052001,104870.0,104860.0,0.2622854]
[1750386219279,5.4009844,104870.0,104860.0,0.27182137]
[1750386219486,5.39144888,104870.0,104860.0,0.27182137]
[1750386219693,5.39144843,104870.0,104860.0,0.27182082]
[1750386220755,5.41051846,104870.0,104860.0,0.27182082]
[1750386220974,5.40098321,104870.0,104860.0,0.27182082]
[1750386222128,5.72191327,104870.0,104860.0,0.27182082]
[1750386222328,5.73144824,104870.0,104860.0,0.27182082]
[1750386222585,5.72191327,104870.0,104860.0,0.27182082]
[1750386222799,5.73144815,104870.0,104860.0,0.27182082]
[1750386223850,5.71237848,104870.0,104860.0,0.27182082]
[1750386224058,5.72191327,104870.0,104860.0,0.27182082]
[1750386224479,5.73144815,104870.0,104860.0,0.27182082]
[1750386224691,5.74098331,104870.0,104860.0,0.27182082]
[1750386224898,5.73144815,104870.0,104860.0,0.27182082]
[1750386225543,5.74098321,104870.0,104860.0,0.27182082]
[1750386225746,0.69909521,104870.0,104860.0,0.27182082]
[1750386226510,0.70863046,104870.0,104860.0,0.27182082]
[1750386226714,0.70863037,104870.0,104860.0,0.27182082]
[1750386226920,0.69909521,104870.0,104860.0,0.27182082]
[1750386227990,0.70863037,104870.0,104860.0,0.27182082]
[1750386228879,0.69909521,104870.0,104860.0,0.27182082]
[1750386230024,0.7181658,104870.0,104860.0,0.27182082]
[1750386230748,0.38767532,104870.0,104860.0,0.27182082]
[1750386230974,0.7181658,104870.0,104860.0,0.27182082]
[1750386236280,0.70863037,104870.0,104860.0,0.27182082]
[1750386236487,0.71816635,104870.0,104860.0,0.27182082]
[1750386236663,0.70863092,104870.0,104860.0,0.27182082]
[1750386238342,0.69909558,104870.0,104860.0,0.27182082]
[1750386238728,0.70863083,104870.0,104860.0,0.27182082]
[1750386238874,0.71816617,104870.0,104860.0,0.27182082]
[1750386240388,0.71816672,104870.0,104860.0,0.27182082]
[1750386240598,0.90887949,104870.0,104860.0,0.27182082]
[1750386241224,0.71816718,104870.0,104860.0,0.27182082]
[1750386241459,0.70863166,104870.0,104860.0,0.27182082]
[1750386242970,0.69909623,104870.0,104860.0,0.27182082]
[1750386243159,0.70863166,104870.0,104860.0,0.27182082]
[1750386243584,0.90887949,104870.0,104860.0,0.27182082]
[1750386243736,0.90887994,104870.0,104860.0,0.26228494]
[1750386243953,0.89934469,104870.0,104860.0,0.26228494]
[1750386244766,0.88980935,104870.0,104860.0,0.24321308]
[1750386245966,0.88980935,104870.0,104860.0,0.25274915]
[1750386246556,0.88980935,104870.0,104860.0,0.26228512]
[1750386248003,0.88980935,104870.0,104860.0,0.271821]
[1750386252916,0.88980935,104870.0,104860.0,0.25274915]
[1750386257331,0.55931887,104870.0,104860.0,0.19273049]
[1750386257514,1.22029983,104870.0,104860.0,0.20843049]
[1750386257757,1.22029983,104870.0,104860.0,0.21796683]
[1750386257984,1.22029983,104870.0,104860.0,0.23426683]
[1750386258432,0.88980935,104870.0,104860.0,0.24380326]
[1750386259283,0.88980935,104870.0,104860.0,0.25333951]
[1750386260132,1.22029983,104870.0,104860.0,0.25333951]
[1750386261001,0.88027392,104870.0,104860.0,0.23426692]
[1750386261171,1.2107644,104870.0,104860.0,0.23426692]
[1750386261396,1.30604333,104870.0,104860.0,0.0177]
[1750386261557,6.33839581,104870.0,104860.0,0.20843049]
[1750386262164,6.33834186,104870.0,104860.0,0.20843049]
[1750386262741,6.33834186,104870.0,104860.0,0.0177]
[1750386263328,6.33834186,104870.0,104860.0,0.20843049]
[1750386263741,6.33834186,104870.0,104860.0,0.0177]
[1750386265037,6.35404186,104870.0,104860.0,0.002]
[1750386265244,6.35408186,104870.0,104860.0,0.002]
[1750386265705,6.35404186,104870.0,104860.0,0.002]
[1750386266124,6.54736186,104870.0,104860.0,0.002]
[1750386267232,6.53166186,104870.0,104860.0,0.002]
[1750386267446,6.53162186,104870.0,104860.0,0.002]
[1750386268072,6.37766186,104870.0,104860.0,0.002]
[1750386271142,6.37766186,104870.0,104860.0,0.0185]
[1750386274278,6.37766186,104870.0,104860.0,0.20923049]
[1750386274493,6.37766186,104870.0,104860.0,0.22533049]
[1750386274853,6.37766186,104870.0,104860.0,0.0346]
[1750386275054,6.37766186,104870.0,104860.0,0.22533049]
[1750386275262,6.37766186,104870.0,104860.0,0.0346]
[1750386279337,6.53162186,104870.0,104860.0,0.0346]
[1750386280135,6.20113138,104870.0,104860.0,0.0346]
[1750386280342,6.53162186,104870.0,104860.0,0.22533049]
[1750386280760,6.53162186,104870.0,104860.0,0.0346]
[1750386286011,6.53162186,104870.0,104860.0,0.22533049]
[1750386286425,6.53162186,104870.0,104860.0,0.23486701]
[1750386287455,6.37766186,104870.0,104860.0,0.23486701]
[1750386287815,6.37766186,104870.0,104860.0,0.25393978]
[1750386288244,6.37766186,104870.0,104860.0,0.23486701]
[1750386289501,6.37766186,104870.0,104860.0,0.0346]
[1750386294419,6.03771581,104870.0,104860.0,0.0346]
[1750386298666,6.03771581,104870.0,104860.0,0.03573]
[1750386299078,6.37771581,104870.0,104860.0,0.0346]
[1750386302916,6.40637481,104870.0,104860.0,0.0346]
[1750386308003,6.40608192,104870.0,104860.0,0.0346]
[1750386309928,6.37742292,104870.0,104860.0,0.0346]
[1750386313711,6.53138292,104870.0,104860.0,0.0346]
[1750386313971,6.53138292,104870.0,104860.0,0.22533049]
[1750386314685,6.53138292,104870.0,104860.0,0.0346]
[1750386315091,6.20089244,104870.0,104860.0,0.22533049]
[1750386315297,6.20089244,104870.0,104860.0,0.23486701]
[1750386315511,6.04693244,104870.0,104860.0,0.23486701]
[1750386315711,6.00761244,104870.0,104860.0,0.23486701]
[1750386315932,6.00761244,104870.0,104860.0,0.24440344]
[1750386317062,6.33810292,104870.0,104860.0,0.24440344]
[1750386317353,6.33810292,104870.0,104860.0,0.25393978]
[1750386317560,0.69909567,104870.0,104860.0,0.27301182]
[1750386317777,0.90887893,104870.0,104860.0,0.27301182]
[1750386318199,0.71816662,104870.0,104860.0,0.27301182]
[1750386318402,0.89934469,104870.0,104860.0,0.26347594]
[1750386318612,0.89934469,104870.0,104860.0,0.27301201]
[1750386318867,0.89934469,104870.0,104860.0,0.27301146]
[1750386319343,0.69909677,104870.0,104860.0,0.27301091]
[1750386319564,0.88980908,104870.0,104860.0,0.26347503]
[1750386319787,0.89934469,104870.0,104860.0,0.26347503]
[1750386320456,0.70863238,104870.0,104860.0,0.26347503]
[1750386320880,0.36860629,104870.0,104860.0,0.27301091]
[1750386321128,0.69909631,104870.0,104860.0,0.27301091]
[1750386321541,0.70863183,104870.0,104860.0,0.27301091]
[1750386323521,0.70863183,104870.0,104860.0,0.26347503]
[1750386323754,0.90887975,104870.0,104860.0,0.26347503]
[1750386324367,0.89934414,104870.0,104860.0,0.26347503]
[1750386324571,0.90887975,104870.0,104860.0,0.26347503]
[1750386324825,0.71816744,104870.0,104860.0,0.26347503]
[1750386325067,0.70863183,104870.0,104860.0,0.27301091]
[1750386325473,0.89934414,104870.0,104860.0,0.26347503]
[1750386325687,0.89934469,104870.0,104860.0,0.23486683]
[1750386325893,0.88980935,104870.0,104860.0,0.24440308]
[1750386326430,0.88980935,104870.0,104860.0,0.25393924]
[1750386326618,0.88980935,104870.0,104860.0,0.26347531]
[1750386327023,1.22029983,104870.0,104860.0,0.26347531]
[1750386327254,0.88980935,104870.0,104860.0,0.26347531]
[1750386327778,0.54980935,104870.0,104860.0,0.26347531]
[1750386328407,0.54980935,104870.0,104860.0,0.25393924]
[1750386329719,0.88029983,104870.0,104860.0,0.23486683]
[1750386329977,0.8707644,104870.0,104860.0,0.23486683]
[1750386330806,0.8707644,104870.0,104860.0,0.24440308]
[1750386332822,0.86122888,104870.0,104860.0,0.23486701]
[1750386333027,0.86122888,104870.0,104860.0,0.24440344]
[1750386333227,0.86122888,104870.0,104860.0,0.25393969]
[1750386334634,1.20122888,104870.0,104860.0,0.24440344]
[1750386334845,1.20122888,104870.0,104860.0,0.25393969]
[1750386335072,1.20122888,104870.0,104860.0,0.26347585]
[1750386335297,1.20122888,104870.0,104860.0,0.25393969]
[1750386335511,1.19169327,104870.0,104860.0,0.24440344]
[1750386336132,1.19169327,104870.0,104860.0,0.25393978]
[1750386337983,1.19169327,104870.0,104860.0,0.24440344]
[1750386338186,1.19169327,104870.0,104860.0,0.24562344]
[1750386341381,1.19169327,104870.0,104860.0,0.03582]
[1750386341639,6.3288602,104870.0,104860.0,0.0346]
[1750386341841,6.4828202,104870.0,104860.0,0.002]
[1750386343542,6.50572214,104870.0,104860.0,0.002]
[1750386343758,6.51466776,104870.0,104860.0,0.002]
[1750386343951,6.50572214,104870.0,104860.0,0.002]
[1750386345036,6.4828202,104870.0,104860.0,0.002]
[1750386345883,6.4827802,104870.0,104860.0,0.002]
[1750386346759,6.4827802,104870.0,104860.0,0.0185]
[1750386349327,6.4828202,104870.0,104860.0,0.002]
[1750386350177,6.4827802,104870.0,104860.0,0.0182]
[1750386351771,6.4827802,104870.0,104860.0,0.0343]
[1750386354236,6.4828202,104870.0,104860.0,0.0182]
[1750386354450,6.50571429,104870.0,104860.0,0.0182]
[1750386354657,6.4828202,104870.0,104860.0,0.0182]
[1750386355274,6.4827802,104870.0,104860.0,0.0345]
[1750386355569,6.4827802,104870.0,104860.0,0.0182]
[1750386358504,6.50567337,104870.0,104860.0,0.0182]
[1750386359185,6.54495337,104870.0,104860.0,0.0182]
[1750386359542,6.57298906,104870.0,104860.0,0.0182]
[1750386360955,6.55009589,104870.0,104860.0,0.0182]
[1750386361449,6.55009589,104870.0,104860.0,0.0348]
[1750386362705,6.57298996,104870.0,104860.0,0.0348]
[1750386363001,6.57298994,104870.0,104860.0,0.0348]
[1750386363760,6.55009589,104870.0,104860.0,0.0348]
[1750386365443,6.57299195,104870.0,104860.0,0.0348]
[1750386366423,6.60871076,104870.0,104860.0,0.0182]
[1750386366665,6.61765469,104870.0,104860.0,0.0182]
[1750386367156,6.64631569,104870.0,104860.0,0.0182]
[1750386368348,6.61059688,104870.0,104860.0,0.0182]
[1750386368600,6.61063688,104870.0,104860.0,0.002]
[1750386368841,6.61063711,104870.0,104860.0,0.002]
[1750386369538,6.61059711,104870.0,104860.0,0.002]
[1750386372496,6.61059711,104870.0,104860.0,0.0184]
[1750386372987,6.70586775,104870.0,104860.0,0.002]
[1750386373250,6.70590775,104870.0,104860.0,0.002]
[1750386373475,7.05820703,104870.0,104860.0,0.002]
[1750386373680,6.71261655,104870.0,104860.0,0.002]
[1750386374130,6.6173467,104870.0,104860.0,0.002]
[1750386374588,6.61734528,104870.0,104860.0,0.001]
[1750386374837,6.61830528,104870.0,104860.0,0.001]
[1750386376083,0.54026683,104860.0,104850.0,0.0321]
[1750386376291,6.33841472,104860.0,104850.0,0.03335]
[1750386377250,6.33841472,104860.0,104850.0,0.03435]
[1750386377488,6.33841472,104860.0,104850.0,0.03535]
[1750386377716,6.37769472,104860.0,104850.0,0.03535]
[1750386381758,6.7081852,104860.0,104850.0,0.0341]
[1750386382210,6.7368472,104860.0,104850.0,0.0341]
[1750386383034,6.40635672,104860.0,104850.0,0.0341]
[1750386383604,6.6975672,104860.0,104850.0,0.0341]
[1750386383859,6.91361601,104860.0,104850.0,0.0341]
[1750386384782,6.91361601,104860.0,104850.0,0.0186]
[1750386384996,6.89780398,104860.0,104850.0,0.0186]
[1750386385415,6.90734032,104860.0,104850.0,0.0186]
[1750386386122,6.90734032,104860.0,104850.0,0.0343]
[1750386390653,5.38516762,104860.0,104850.0,0.30438387]
[1750386390873,0.03928,104860.0,104850.0,0.25487988]
[1750386391106,0.03928,104860.0,104850.0,0.58537036]
[1750386391757,0.03928,104860.0,104850.0,0.68064929]
[1750386391941,0.03928,104860.0,104850.0,0.83452929]
[1750386392408,0.03928,104860.0,104850.0,0.83352929]
[1750386392675,0.03928,104860.0,104850.0,0.83552929]
[1750386393106,0.03928,104860.0,104850.0,0.83452929]
[1750386393340,0.33049048,104870.0,104860.0,0.25133896]
[1750386393554,0.70862729,104880.0,104870.0,0.25253832]
[1750386393842,0.71930445,104880.0,104870.0,0.26207329]
[1750386394064,0.68955851,104880.0,104870.0,0.26207329]
[1750386394272,0.39837267,104880.0,104870.0,0.26207329]
[1750386394485,0.41741644,104880.0,104870.0,0.59256377]
[1750386394691,0.37813644,104880.0,104870.0,0.59256377]
[1750386394903,0.36860219,104880.0,104870.0,0.26207329]
[1750386395109,0.37928,104880.0,104870.0,0.59244583]
[1750386395319,0.39834831,104880.0,104870.0,0.59244583]
[1750386395526,0.38881406,104880.0,104870.0,0.59244583]
[1750386395733,0.38881406,104880.0,104870.0,0.26207329]
[1750386396351,0.34953406,104880.0,104870.0,0.22393231]
[1750386396563,0.59957713,104880.0,104870.0,0.24300326]
[1750386396982,0.3600684,104880.0,104870.0,0.26207348]
[1750386397191,0.3983484,104880.0,104870.0,0.26207348]
[1750386397400,0.3590684,104880.0,104870.0,0.26207348]
[1750386397609,0.40788265,104880.0,104870.0,0.25253851]
[1750386397791,0.40788256,104880.0,104870.0,0.27160854]
[1750386398208,0.41741708,104880.0,104870.0,0.27160854]
[1750386398420,0.37928,104880.0,104870.0,0.27160854]
[1750386398633,0.37928,104880.0,104870.0,0.60198108]
[1750386398850,0.34,104880.0,104870.0,0.75582108]
[1750386399071,0.37928,104880.0,104870.0,0.75582108]
[1750386399285,0.0342628,104890.0,104880.0,0.21929713]
[1750386399286,0.01519658,104890.0,104880.0,0.21929713]
[1750386399499,0.26400955,104890.0,104880.0,0.25151713]
[1750386399953,0.21519658,104890.0,104880.0,0.40535713]
[1750386400176,0.2050741,104890.0,104880.0,0.40535713]
[1750386400620,0.20008973,104890.0,104880.0,0.73572967]
[1750386401722,0.20008973,104890.0,104880.0,0.40535713]
[1750386402788,0.20008973,104890.0,104880.0,0.40935713]
[1750386406159,8.973e-05,104890.0,104880.0,0.8350086]
[1750386414159,0.04785079,104910.0,104900.0,0.22449776]
[1750386414450,0.04789786,104910.0,104900.0,0.37829776]
[1750386415543,0.04789786,104910.0,104900.0,0.40689532]
[1750386415954,0.03936616,104910.0,104900.0,0.40689532]
[1750386416160,0.36983455,104910.0,104900.0,0.40689532]
[1750386416616,0.37936616,104910.0,104900.0,0.40689532]
[1750386416837,0.36983455,104910.0,104900.0,0.40689532]
[1750386417717,0.36030312,104910.0,104900.0,0.40689532]
[1750386419314,0.36030303,104910.0,104900.0,0.40689532]
[1750386419724,0.35077178,104910.0,104900.0,0.40689532]
[1750386421025,0.01077178,104910.0,104900.0,0.40689532]
[1750386421276,0.55077178,104910.0,104900.0,0.40689532]
[1750386421513,0.35077178,104910.0,104900.0,0.40689532]
[1750386421736,0.36030303,104910.0,104900.0,0.40689532]
[1750386422226,0.35077178,104910.0,104900.0,0.40689532]
[1750386422476,0.36030303,104910.0,104900.0,0.40689532]
[1750386422939,0.36030294,104910.0,104900.0,0.40689532]
[1750386423179,0.35077178,104910.0,104900.0,0.40689532]
[1750386424846,0.34098244,104910.0,104900.0,0.40689532]
[1750386426660,0.01077178,104910.0,104900.0,0.40689532]
[1750386426841,0.34098244,104910.0,104900.0,0.40689532]
[1750386427292,0.34991003,104910.0,104900.0,0.40689532]
[1750386427491,0.35944128,104910.0,104900.0,0.40689532]
[1750386427797,0.35944119,104910.0,104900.0,0.40689532]
[1750386428444,0.36897253,104910.0,104900.0,0.40689532]
[1750386428888,0.02923053,104910.0,104900.0,0.40689532]
[1750386429094,0.35944119,104910.0,104900.0,0.40689532]
[1750386429506,0.3505136,104910.0,104900.0,0.40689532]
[1750386429716,0.36004494,104910.0,104900.0,0.40689532]
[1750386429921,0.3505136,104910.0,104900.0,0.40689532]
[1750386430364,0.36004494,104910.0,104900.0,0.40689532]
[1750386430584,0.36957646,104910.0,104900.0,0.40689532]
[1750386431434,0.36004494,104910.0,104900.0,0.40689532]
[1750386432346,0.36957646,104910.0,104900.0,0.40689532]
[1750386432550,0.38830263,104910.0,104900.0,0.40689532]
[1750386432732,0.70898177,104910.0,104900.0,0.40689532]
[1750386434962,0.69945043,104910.0,104900.0,0.40689532]
[1750386435177,0.7185132,104910.0,104900.0,0.40689532]
[1750386435397,0.71851311,104910.0,104900.0,0.40689532]
[1750386435609,0.72804472,104910.0,104900.0,0.40689532]
[1750386436038,0.72804994,104910.0,104900.0,0.40689532]
[1750386436259,0.367747,104910.0,104900.0,0.40689532]
[1750386436687,0.38711558,104910.0,104900.0,0.40689532]
[1750386438571,0.38711558,104910.0,104900.0,0.40685532]
[1750386438802,0.39664728,104910.0,104900.0,0.40685532]
[1750386439010,0.38711576,104910.0,104900.0,0.40685532]
[1750386439472,0.39664755,104910.0,104900.0,0.40685532]
[1750386439683,0.38711576,104910.0,104900.0,0.40685532]
[1750386440111,0.39664755,104910.0,104900.0,0.40685532]
[1750386440343,0.38711576,104910.0,104900.0,0.40685532]
[1750386440590,0.39664755,104910.0,104900.0,0.40685532]
[1750386440838,0.38711576,104910.0,104900.0,0.40685532]
[1750386441339,0.38711611,104910.0,104900.0,0.40685532]
[1750386441806,0.3775845,104910.0,104900.0,0.40685532]
[1750386442517,0.70864192,104910.0,104900.0,0.40685532]
[1750386443820,0.69911049,104910.0,104900.0,0.40685532]
[1750386447025,0.69911049,104910.0,104900.0,0.23565532]
[1750386447241,0.22878802,104900.0,104890.0,0.0324]
[1750386447458,0.01906659,104890.0,104880.0,0.25283668]
[1750386447684,0.56855366,104890.0,104880.0,0.40659732]
[1750386448315,0.5590205,104890.0,104880.0,0.40659732]
[1750386449073,0.5590205,104890.0,104880.0,0.40859732]
[1750386449321,0.5590205,104890.0,104880.0,0.25483732]
[1750386449591,0.54948725,104890.0,104880.0,0.21992873]
[1750386449823,0.53995391,104890.0,104880.0,0.36752325]
[1750386450305,0.53995391,104890.0,104880.0,0.37705759]
[1750386451448,0.53995391,104890.0,104880.0,0.38659184]
[1750386451666,0.53995391,104890.0,104880.0,0.40329184]
[1750386452299,0.53995391,104890.0,104880.0,0.38659184]
[1750386453136,0.53995391,104890.0,104880.0,0.40239184]
[1750386454192,0.53995391,104890.0,104880.0,0.411926]
[1750386455274,0.53995391,104890.0,104880.0,0.40239184]
[1750386456748,0.87995391,104890.0,104880.0,0.004]
[1750386456955,6.30735257,104890.0,104880.0,0.15784]
[1750386457411,5.97714191,104890.0,104880.0,0.15784]
[1750386457843,5.96104191,104890.0,104880.0,0.15384]
[1750386458052,5.96104191,104890.0,104880.0,0.35506882]
[1750386458266,5.95150839,104890.0,104880.0,0.35506882]
[1750386458703,5.57256394,104890.0,104880.0,0.23356882]
[1750386458926,0.68927707,104890.0,104880.0,0.41601183]
[1750386459138,0.67974363,104890.0,104880.0,0.41601183]
[1750386459323,0.68927679,104890.0,104880.0,0.41601183]
[1750386459590,0.3492767,104890.0,104880.0,0.41601183]
[1750386459791,0.34927679,104890.0,104880.0,0.41601183]
[1750386460214,0.33974363,104890.0,104880.0,0.41601183]
[1750386460625,0.34927688,104890.0,104880.0,0.41601183]
[1750386460833,0.33974363,104890.0,104880.0,0.41601183]
[1750386461044,0.34941482,104890.0,104880.0,0.41601183]
[1750386461252,0.33988175,104890.0,104880.0,0.41601183]
[1750386461917,0.34941482,104890.0,104880.0,0.41601183]
[1750386462616,0.35894807,104890.0,104880.0,0.41601183]
[1750386463280,0.34941482,104890.0,104880.0,0.41601183]
[1750386463744,0.33034878,104890.0,104880.0,0.41601183]
[1750386464977,0.72869537,104890.0,104880.0,0.36460325]
[1750386465185,0.74776259,104890.0,104880.0,0.40633759]
[1750386465371,0.74776259,104890.0,104880.0,0.40747759]
[1750386465578,0.93843853,104890.0,104880.0,0.40747759]
[1750386465788,0.92890537,104890.0,104880.0,0.39794334]
[1750386466192,0.93843916,104890.0,104880.0,0.41701175]
[1750386469102,0.73822943,104890.0,104880.0,0.42654581]
[1750386469288,0.92890537,104890.0,104880.0,0.42654581]
[1750386469494,0.93843916,104890.0,104880.0,0.42654581]
[1750386470354,0.93843916,104890.0,104880.0,0.41701175]
[1750386470985,0.36860065,104890.0,104880.0,0.41701175]
[1750386471200,0.73822943,104890.0,104880.0,0.42654581]
[1750386471413,0.92890537,104890.0,104880.0,0.36472343]
[1750386471630,0.91937194,104890.0,104880.0,0.36472343]
[1750386472052,5.96125994,104890.0,104880.0,0.38142343]
[1750386472265,5.96125994,104890.0,104880.0,0.38256343]
[1750386472476,5.96125994,104890.0,104880.0,0.39209786]
[1750386473313,5.63091116,104890.0,104880.0,0.39209786]
[1750386473519,5.96125994,104890.0,104880.0,0.39209786]
[1750386473727,5.94219272,104890.0,104880.0,0.1728]
[1750386474692,5.95899272,104890.0,104880.0,0.15496]
[1750386475306,5.94219272,104890.0,104880.0,0.15496]
[1750386475815,5.94219272,104890.0,104880.0,0.17056]
[1750386476412,5.94219272,104890.0,104880.0,0.17176]
[1750386477996,5.94219272,104890.0,104880.0,0.18846]
[1750386478626,5.94219272,104890.0,104880.0,0.001]
[1750386479604,6.39922043,104890.0,104880.0,0.001]
[1750386479835,6.39926043,104890.0,104880.0,0.001]
[1750386480005,6.47339767,104890.0,104880.0,0.001]
[1750386480245,6.56212158,104890.0,104880.0,0.001]
[1750386480464,6.58501077,104890.0,104880.0,0.001]
[1750386480902,6.58533553,104890.0,104880.0,0.001]
[1750386481339,6.59110134,104890.0,104880.0,0.001]
[1750386482676,6.59109895,104890.0,104880.0,0.001]
[1750386482897,6.59108057,104890.0,104880.0,0.001]
[1750386483297,6.2605786,104890.0,104880.0,0.001]
[1750386484121,6.2464786,104890.0,104880.0,0.001]
[1750386484556,6.23749984,104890.0,104880.0,0.001]
[1750386485043,6.22019984,104890.0,104880.0,0.001]
[1750386487705,6.19154484,104890.0,104880.0,0.001]
[1750386488373,6.19150484,104890.0,104880.0,0.001]
[1750386489044,5.99834484,104890.0,104880.0,0.001]
[1750386489472,6.19150484,104890.0,104880.0,0.001]
[1750386489907,6.20900484,104890.0,104880.0,0.001]
[1750386490118,6.23208151,104890.0,104880.0,0.001]
[1750386490335,6.24663451,104890.0,104880.0,0.001]
[1750386490763,6.57709648,104890.0,104880.0,0.001]
[1750386491585,6.57709534,104890.0,104880.0,0.001]
[1750386491796,6.60000745,104890.0,104880.0,0.001]
[1750386492007,6.57713534,104890.0,104880.0,0.001]
[1750386492419,6.57713534,104890.0,104870.0,0.20741231]
[1750386492420,0.20022864,104880.0,104870.0,0.20741231]
[1750386492724,5.90312058,104880.0,104870.0,0.22501231]
[1750386492882,5.90312058,104880.0,104870.0,0.0343]
[1750386493501,5.90312058,104880.0,104870.0,0.22601231]
[1750386493921,5.90312058,104880.0,104870.0,0.0353]
[1750386498305,5.90312058,104880.0,104870.0,0.22601231]
[1750386498934,5.90312058,104880.0,104870.0,0.0353]
[1750386499682,5.90312058,104880.0,104870.0,0.0177]
[1750386499915,5.90312058,104880.0,104870.0,0.0352]
[1750386500614,5.90312058,104880.0,104870.0,0.0364]
[1750386502807,5.90312972,104880.0,104870.0,0.0364]
[1750386503444,5.74299293,104880.0,104870.0,0.0364]
[1750386504512,5.75252745,104880.0,104870.0,0.0364]
[1750386504733,5.79176745,104880.0,104870.0,0.0364]
[1750386507132,5.79176745,104880.0,104870.0,0.22711231]
[1750386507350,5.79176745,104880.0,104870.0,0.23664792]
[1750386507817,6.71135292,104880.0,104870.0,0.001]
[1750386508111,6.74000792,104880.0,104870.0,0.001]
[1750386508321,6.75800792,104880.0,104870.0,0.001]
[1750386508951,6.76699159,104880.0,104870.0,0.001]
[1750386509151,6.76699154,104880.0,104870.0,0.001]
[1750386509585,0.20024774,104870.0,104860.0,0.033]
[1750386509797,5.90314882,104870.0,104860.0,0.033]
[1750386510989,5.90314882,104870.0,104860.0,0.03347149]
[1750386511202,6.05694882,104870.0,104860.0,0.03347149]
[1750386511624,6.05694882,104870.0,104860.0,0.03447149]
[1750386513699,6.05694882,104870.0,104860.0,0.03564149]
[1750386514877,6.05694882,104870.0,104860.0,0.03447149]
[1750386515885,6.05694882,104870.0,104860.0,0.03564149]
[1750386520919,5.90314882,104870.0,104860.0,0.03564149]
[1750386523980,5.58217762,104870.0,104860.0,0.24544475]
[1750386525268,5.58217762,104870.0,104860.0,0.24544493]
[1750386526981,5.58217762,104870.0,104860.0,0.25498127]
[1750386527186,5.62161762,104870.0,104860.0,0.25498127]
[1750386527396,5.62161762,104870.0,104860.0,0.26451752]
[1750386530219,5.62161762,104870.0,104860.0,0.27405368]
[1750386531286,5.61208228,104870.0,104860.0,0.26451752]
[1750386532393,5.61141528,104870.0,104860.0,0.26451752]
[1750386532601,5.60254685,104870.0,104860.0,0.24544493]
[1750386536759,5.60254685,104870.0,104860.0,0.25498127]
[1750386538552,5.60254685,104870.0,104860.0,0.26451752]
[1750386538980,5.56310685,104870.0,104860.0,0.26451752]
[1750386539196,5.60254685,104870.0,104860.0,0.26451752]
[1750386539429,0.02860519,104870.0,104860.0,0.27405286]
[1750386539658,0.34957639,104870.0,104860.0,0.39505286]
[1750386539871,0.3495763,104870.0,104860.0,0.39505286]
[1750386540078,0.33050654,104870.0,104860.0,0.42885286]
[1750386540262,0.67050654,104870.0,104860.0,0.42885286]
[1750386542064,0.34,104870.0,104860.0,0.42885286]
[1750386542258,0.67050654,104870.0,104860.0,0.42885286]
[1750386543792,0.34,104870.0,104860.0,0.42885286]
[1750386543998,0.67050654,104870.0,104860.0,0.42885286]
[1750386544414,0.87050654,104870.0,104860.0,0.42885286]
[1750386544628,0.67050654,104870.0,104860.0,0.42885286]
[1750386550388,6.92246294,104870.0,104850.0,0.0001]
[1750386550614,5.58217393,104850.0,104840.0,0.0001]
[1750386550842,6.27564538,104850.0,104840.0,0.0001]
[1750386551061,6.34422199,104850.0,104840.0,0.0001]
[1750386551275,6.37288899,104850.0,104840.0,0.0001]
[1750386551939,6.79867446,104850.0,104840.0,0.0001]
[1750386552203,6.81747799,104850.0,104840.0,0.0001]
[1750386552420,6.97163799,104850.0,104840.0,0.0001]
[1750386552653,6.97163867,104850.0,104840.0,0.0001]
[1750386552880,6.64184437,104850.0,104840.0,0.0001]
[1750386553098,7.06797688,104850.0,104840.0,0.0001]
[1750386553590,7.09257916,104850.0,104840.0,0.0001]
[1750386554024,7.09357916,104850.0,104840.0,0.0001]
[1750386554239,5.64155454,104840.0,104830.0,0.0001]
[1750386554459,6.28983613,104840.0,104830.0,0.0001]
[1750386554687,6.65246858,104840.0,104830.0,0.0001]
[1750386555125,6.72461055,104840.0,104830.0,0.0001]
[1750386555337,6.66524905,104840.0,104830.0,0.0001]
[1750386555796,6.59310708,104840.0,104830.0,0.0001]
[1750386556449,6.59310708,104840.0,104830.0,0.0011]
[1750386556667,6.59310708,104840.0,104830.0,0.0021]
[1750386557095,6.59510708,104840.0,104830.0,0.0021]
[1750386557320,6.59510708,104840.0,104830.0,0.0011]
[1750386557536,6.69037693,104840.0,104830.0,0.0011]
[1750386558183,6.69237693,104840.0,104830.0,0.0011]
[1750386558396,6.59710708,104840.0,104830.0,0.0011]
[1750386561053,6.61446708,104840.0,104830.0,0.0011]
[1750386565177,6.60236708,104840.0,104830.0,0.0011]
[1750386570394,6.58596708,104840.0,104830.0,0.0011]
[1750386571695,6.68099091,104840.0,104830.0,0.0011]
[1750386572479,6.58592708,104840.0,104830.0,0.0011]
[1750386574759,6.25506442,104840.0,104830.0,0.0011]
[1750386576106,6.06146442,104840.0,104830.0,0.0343]
[1750386576316,6.25494442,104840.0,104830.0,0.0343]
[1750386578445,6.2777664,104840.0,104830.0,0.0343]
[1750386580406,6.31310055,104840.0,104830.0,0.0343]
[1750386582479,6.31310063,104840.0,104830.0,0.0343]
[1750386583453,6.31310366,104840.0,104830.0,0.0343]
[1750386584788,6.64396632,104840.0,104830.0,0.0343]
[1750386585221,6.64396632,104840.0,104830.0,0.0176]
[1750386585925,6.64396637,104840.0,104830.0,0.0176]
[1750386586156,6.63725286,104840.0,104830.0,0.0176]
[1750386586620,6.64396637,104840.0,104830.0,0.0176]
[1750386587082,6.63725286,104840.0,104830.0,0.0176]
[1750386587336,6.64396639,104840.0,104830.0,0.0176]
[1750386588030,6.63725286,104840.0,104830.0,0.0176]
[1750386588211,6.64396639,104840.0,104830.0,0.0176]
[1750386589668,6.64396639,104840.0,104830.0,0.0331]
[1750386590715,6.64396635,104840.0,104830.0,0.0331]
[1750386593609,6.64396652,104840.0,104830.0,0.0331]
[1750386594906,6.97488471,104840.0,104830.0,0.0331]
[1750386596094,6.97488472,104840.0,104830.0,0.0331]
[1750386596506,6.97488482,104840.0,104830.0,0.0331]
[1750386597370,6.97488485,104840.0,104830.0,0.0331]
[1750386597571,6.74595601,104840.0,104830.0,0.0331]
[1750386597775,6.35799889,104840.0,104830.0,0.0331]
[1750386598186,6.36753705,104840.0,104830.0,0.0331]
[1750386599825,6.70753705,104840.0,104830.0,0.0331]
[1750386600526,6.70753705,104840.0,104830.0,0.0176]